bitfinex-derivatives/quotes_BNBF0:USTF0_20251203
["timestamp","ask_amount","ask_price","bid_price","bid_amount"]
[1764799317299,1.08534688,918.32,916.5,1.59644011]
[1764799317498,0.61922103,918.31,916.56,1.59644011]
[1764799317696,0.61922103,918.3,916.56,1.59644011]
[1764799317998,0.61922103,918.29,916.56,1.59644011]
[1764799318193,0.61922103,918.28,916.49,1.59644011]
[1764799318394,0.61922103,918.27,916.42,1.59644011]
[1764799318597,0.61922103,918.26,916.42,1.59644011]
[1764799318797,0.61922103,918.25,916.4,1.59644011]
[1764799318995,1.70456791,918.24,916.36,1.59644011]
[1764799319194,1.70456791,918.24,916.23,1.516]
[1764799319195,0.61922103,918.23,916.32,1.59644011]
[1764799319495,1.08534688,918.24,916.32,1.59644011]
[1764799319496,0.61922103,918.22,916.32,1.59644011]
[1764799319798,1.08534688,918.17,916.26,1.59644011]
[1764799319994,1.08534688,918.14,916.23,3.11244011]
[1764799320193,1.08534688,918.12,916.23,3.11244011]
[1764799320498,1.70456791,918.11,916.23,1.516]
[1764799320696,0.61922103,918.1,916.23,1.516]
[1764799320896,0.61922103,918.09,916.23,1.516]
[1764799321094,0.61922103,918.08,916.23,1.516]
[1764799321298,0.61922103,918.07,916.23,1.516]
[1764799321497,0.61922103,918.06,916.23,1.516]
[1764799321801,0.61922103,918.05,916.23,1.516]
[1764799322097,0.61922103,918.04,916.23,1.516]
[1764799322298,0.61922103,918.03,916.23,1.516]
[1764799322499,0.61922103,918.02,916.23,1.516]
[1764799322697,0.61922103,918.01,916.23,1.516]
[1764799322896,0.61922103,918.0,916.23,1.516]
[1764799323095,0.61922103,917.99,916.23,1.516]
[1764799323296,0.61922103,917.98,916.23,1.516]
[1764799323498,0.61922103,917.97,916.23,1.516]
[1764799323700,0.61922103,917.96,916.23,1.516]
[1764799323998,0.61922103,917.95,916.23,1.516]
[1764799324199,0.61922103,917.94,916.23,1.516]
[1764799324398,0.61922103,917.93,916.23,1.516]
[1764799324601,0.61922103,917.92,916.23,1.516]
[1764799324898,0.61922103,917.91,916.23,1.516]
[1764799325097,0.61922103,917.9,916.23,1.516]
[1764799325302,0.61922103,917.89,916.23,1.516]
[1764799325499,0.61922103,917.88,916.23,1.516]
[1764799325802,0.61922103,917.87,916.23,1.516]
[1764799325999,0.61922103,917.86,916.23,1.516]
[1764799326198,0.61922103,917.85,916.23,1.516]
[1764799326399,0.61922103,917.84,916.23,1.516]
[1764799326703,0.61922103,917.83,916.23,1.516]
[1764799326898,0.61922103,917.82,916.23,1.516]
[1764799327102,0.61922103,917.81,916.23,1.516]
[1764799327298,0.61922103,917.8,916.23,1.516]
[1764799327602,0.61922103,917.79,916.23,1.516]
[1764799327802,0.61922103,917.78,916.23,1.516]
[1764799328002,0.61922103,917.77,916.23,1.516]
[1764799328202,0.61922103,917.76,916.23,1.516]
[1764799328400,0.61922103,917.75,916.23,1.516]
[1764799328599,0.61922103,917.74,916.23,1.516]
[1764799328799,0.61922103,917.73,916.23,1.516]
[1764799329105,0.61922103,917.72,916.23,1.516]
[1764799329399,0.61922103,917.71,916.23,1.516]
[1764799329604,0.61922103,917.7,916.23,1.516]
[1764799329798,0.61922103,917.69,916.23,1.516]
[1764799330104,0.61922103,917.68,916.23,1.516]
[1764799330304,0.61922103,917.67,916.23,1.516]
[1764799330603,0.61922103,917.66,916.23,1.516]
[1764799330899,0.61922103,917.65,916.23,1.516]
[1764799331099,0.61922103,917.64,916.23,1.516]
[1764799331299,0.61922103,917.63,916.23,1.516]
[1764799331500,0.61922103,917.62,916.23,1.516]
[1764799331800,0.61922103,917.61,916.23,1.516]
[1764799331999,1.08534688,918.05,916.23,1.516]
[1764799332203,0.61782945,918.04,916.23,1.516]
[1764799332409,0.61782945,918.03,916.23,1.516]
[1764799332701,0.61782945,918.02,916.23,1.516]
[1764799332907,0.61782945,918.01,916.23,1.516]
[1764799333103,0.61782945,918.0,916.23,1.516]
[1764799333305,0.61782945,917.99,916.23,1.516]
[1764799333503,0.61782945,917.98,916.23,1.516]
[1764799333703,0.61782945,917.97,916.23,1.516]
[1764799334002,0.61782945,917.96,916.23,1.516]
[1764799334208,0.61782945,917.95,916.23,3.11244011]
[1764799334506,1.08534688,918.44,916.28,1.59644011]
[1764799334803,0.61693872,918.43,916.28,1.59644011]
[1764799335007,0.61693872,918.42,916.28,1.59644011]
[1764799335204,0.61693872,918.41,916.28,1.59644011]
[1764799335409,0.61693872,918.4,916.25,1.59644011]
[1764799335607,0.61693872,918.39,916.25,1.59644011]
[1764799335910,0.61693872,918.38,916.25,1.59644011]
[1764799336106,0.61693872,918.37,916.27,1.59644011]
[1764799336308,0.61693872,918.37,916.23,1.516]
[1764799336309,0.61693872,918.36,916.25,1.59644011]
[1764799336509,0.61693872,918.35,916.25,1.59644011]
[1764799336710,0.61693872,918.34,916.25,1.59644011]
[1764799337006,0.61693872,918.33,916.25,1.59644011]
[1764799337210,0.61693872,918.32,916.25,1.59644011]
[1764799337410,0.61693872,918.31,916.23,3.11244011]
[1764799337612,0.61693872,918.3,916.23,3.11244011]
[1764799337813,0.61693872,918.29,916.23,3.11244011]
[1764799338113,0.61693872,918.28,916.23,3.11244011]
[1764799338313,0.61693872,918.27,916.24,1.59644011]
[1764799338513,0.61693872,918.26,916.3,1.59644011]
[1764799338710,0.61693872,918.25,916.3,1.59644011]
[1764799338914,0.61693872,918.24,916.3,1.59644011]
[1764799339109,0.61693872,918.23,916.3,1.59644011]
[1764799339314,1.08534688,918.59,916.23,1.516]
[1764799339315,0.61693872,918.22,916.29,1.59644011]
[1764799339614,0.61693872,918.21,916.29,1.59644011]
[1764799339814,0.61693872,918.2,916.29,1.59644011]
[1764799340012,0.61693872,918.19,916.29,1.59644011]
[1764799340213,0.61693872,918.18,916.29,1.59644011]
[1764799340512,0.61693872,918.17,916.27,1.59644011]
[1764799340710,0.61693872,918.16,916.28,1.59644011]
[1764799340916,1.08534688,918.62,916.28,1.59644011]
[1764799341216,0.6110177,918.61,916.29,1.59644011]
[1764799341416,0.6110177,918.6,916.27,1.59644011]
[1764799341711,0.6110177,918.59,916.27,1.59644011]
[1764799341915,1.08534688,918.62,916.27,1.59644011]
[1764799341916,0.6110177,918.58,916.27,1.59644011]
[1764799342217,0.6110177,918.57,916.27,1.59644011]
[1764799342512,0.6110177,918.56,916.26,1.59644011]
[1764799342712,0.6110177,918.55,916.29,1.59644011]
[1764799342912,0.6110177,918.54,916.29,1.59644011]
[1764799343113,0.6110177,918.53,916.29,1.59644011]
[1764799343317,0.6110177,918.52,916.27,1.59644011]
[1764799343517,0.6110177,918.51,916.27,1.59644011]
[1764799343717,0.6110177,918.5,916.27,1.59644011]
[1764799343914,0.6110177,918.49,916.29,1.59644011]
[1764799344214,0.6110177,918.48,916.29,1.59644011]
[1764799344515,0.6110177,918.47,916.27,1.59644011]
[1764799344717,0.6110177,918.46,916.27,1.59644011]
[1764799344914,0.6110177,918.45,916.27,1.59644011]
[1764799345118,0.6110177,918.44,916.27,1.59644011]
[1764799345418,0.6110177,918.43,916.26,1.59644011]
[1764799345619,0.6110177,918.42,916.26,1.59644011]
[1764799345815,0.6110177,918.41,916.26,1.59644011]
[1764799346012,0.6110177,918.4,916.26,1.59644011]
[1764799346216,0.6110177,918.39,916.26,1.59644011]
[1764799346419,0.6110177,918.38,916.25,1.59644011]
[1764799346714,0.6110177,918.37,916.25,1.59644011]
[1764799346916,0.6110177,918.36,916.25,1.59644011]
[1764799347114,0.6110177,918.35,916.25,1.59644011]
[1764799347315,0.6110177,918.34,916.26,1.047]
[1764799347615,0.6110177,918.33,916.26,1.047]
[1764799347818,0.6110177,918.32,916.26,1.047]
[1764799348117,0.6110177,918.31,916.26,1.047]
[1764799348314,0.6110177,918.3,916.26,1.047]
[1764799348613,0.6110177,918.29,916.26,1.047]
[1764799348817,1.08534688,918.71,916.26,1.047]
[1764799348818,0.6110177,918.28,916.26,1.047]
[1764799349017,0.6110177,918.27,916.26,1.047]
[1764799349216,0.6110177,918.26,916.26,1.047]
[1764799349418,0.6110177,918.25,916.26,1.047]
[1764799349720,0.6110177,918.24,916.26,1.047]
[1764799349921,0.6110177,918.23,916.26,1.047]
[1764799350219,0.6110177,918.22,916.26,1.047]
[1764799350417,0.6110177,918.21,916.26,1.047]
[1764799350620,0.6110177,918.2,916.26,1.047]
[1764799350921,0.6110177,918.19,916.26,1.047]
[1764799351117,0.6110177,918.18,916.26,1.047]
[1764799351321,0.6110177,918.17,916.26,1.047]
[1764799351521,0.6110177,918.16,916.26,1.047]
[1764799351722,0.6110177,918.15,916.26,1.047]
[1764799351922,0.6110177,918.14,916.26,1.047]
[1764799352221,0.6110177,918.13,916.26,1.047]
[1764799352422,0.6110177,918.12,916.26,1.047]
[1764799352623,1.08534688,918.53,916.26,1.047]
[1764799352624,0.6110177,918.11,916.26,1.047]
[1764799352821,0.6110177,918.1,916.26,1.047]
[1764799353020,0.6110177,918.09,916.26,1.047]
[1764799353218,0.6110177,918.08,916.26,1.047]
[1764799353421,0.6110177,918.07,916.26,1.047]
[1764799353620,0.6110177,918.06,916.26,1.047]
[1764799353822,0.6110177,918.05,916.26,1.047]
[1764799354121,0.6110177,918.04,916.26,1.047]
[1764799354319,0.6110177,918.03,916.26,1.047]
[1764799354518,0.6110177,918.02,916.26,1.047]
[1764799354723,0.6110177,918.01,916.26,1.047]
[1764799354925,0.6110177,918.0,916.26,1.047]
[1764799355123,1.08534688,918.47,916.26,1.047]
[1764799355426,0.61059173,918.46,916.26,1.047]
[1764799355727,1.69593861,918.45,916.26,1.047]
[1764799356022,0.61059173,918.44,916.26,1.047]
[1764799356226,1.08534688,918.43,916.26,1.047]
[1764799356425,1.08534688,918.38,916.26,1.047]
[1764799356628,0.61059173,918.37,916.26,1.047]
[1764799358028,1.08534688,918.3,916.26,1.047]
[1764799358226,1.69593861,918.29,916.26,1.047]
[1764799358425,0.61059173,918.28,916.27,1.355]
[1764799359126,1.69593861,918.28,916.27,1.355]
[1764799359324,0.61059173,918.27,916.27,1.355]
[1764799360229,0.61059173,918.26,916.27,1.355]
[1764799360425,0.61059173,918.25,916.27,1.355]
[1764799360726,0.61059173,918.24,916.27,1.355]
[1764799361029,0.61059173,918.23,916.27,1.355]
[1764799361230,0.61059173,918.22,916.27,1.355]
[1764799361429,0.61059173,918.21,916.27,1.355]
[1764799361629,0.61059173,918.2,916.27,1.355]
[1764799361928,1.08534688,918.27,916.27,1.355]
[1764799361929,0.61059173,918.19,916.27,1.355]
[1764799362126,0.61059173,918.18,916.27,1.355]
[1764799362429,0.61059173,918.17,916.39,1.59644011]
[1764799362635,0.61059173,918.16,916.37,1.59644011]
[1764799362931,0.61059173,918.15,916.31,1.59644011]
[1764799363131,0.61059173,918.14,916.33,1.59644011]
[1764799363331,0.1895936,918.78,916.32,1.59644011]
[1764799363332,0.61059173,918.13,916.32,1.59644011]
[1764799363531,0.61059173,918.12,916.32,1.59644011]
[1764799363730,0.61059173,918.11,916.32,1.59644011]
[1764799363931,0.61059173,918.1,916.32,1.59644011]
[1764799364136,0.61059173,918.09,916.27,1.355]
[1764799364332,0.61059173,918.08,916.27,1.355]
[1764799364532,0.61059173,918.07,916.27,1.355]
[1764799364731,0.61280164,918.06,916.27,1.355]
[1764799364930,0.61280164,918.05,916.27,1.355]
[1764799365230,0.61280164,918.04,916.27,1.355]
[1764799365436,0.61280164,918.03,916.27,1.355]
[1764799365633,0.61280164,918.02,916.27,1.355]
[1764799365937,0.61280164,918.01,916.27,1.355]
[1764799366136,0.61280164,918.0,916.27,1.355]
[1764799366432,0.61280164,917.99,916.27,1.355]
[1764799366636,0.61280164,917.98,916.27,1.355]
[1764799366932,0.61280164,917.97,916.27,1.355]
[1764799367135,0.61280164,917.96,916.27,1.355]
[1764799367332,1.08534688,918.25,916.27,1.355]
[1764799367333,0.61280164,917.95,916.27,1.355]
[1764799367538,0.61280164,917.94,916.27,1.355]
[1764799367738,0.61280164,917.93,916.27,1.355]
[1764799367937,0.61280164,917.92,916.27,1.355]
[1764799368135,0.61280164,917.91,916.27,1.355]
[1764799368336,0.61280164,917.9,916.27,1.355]
[1764799368540,0.61280164,917.89,916.27,1.355]
[1764799368739,0.61280164,917.88,916.27,1.355]
[1764799369040,0.61280164,917.87,916.27,1.355]
[1764799369241,0.61280164,917.86,916.27,1.355]
[1764799369439,0.61280164,917.85,916.27,1.355]
[1764799369637,0.61280164,917.84,916.27,1.355]
[1764799369839,0.61280164,917.83,916.27,1.355]
[1764799370038,0.61280164,917.82,916.27,1.355]
[1764799370238,0.61280164,917.81,916.28,1.59644011]
[1764799370442,0.61280164,917.8,916.29,1.59644011]
[1764799370638,0.61280164,917.79,916.29,1.59644011]
[1764799370841,1.08534688,918.17,916.29,1.59644011]
[1764799370842,0.61280164,917.78,916.29,1.59644011]
[1764799371042,0.61280164,917.77,916.29,1.59644011]
[1764799371342,0.61280164,917.76,916.32,1.59644011]
[1764799371539,0.61280164,917.75,916.32,1.59644011]
[1764799371743,0.61280164,917.74,916.32,1.59644011]
[1764799372044,0.61280164,917.73,916.32,1.59644011]
[1764799372241,0.61280164,917.72,916.35,1.59644011]
[1764799372445,0.61280164,917.71,916.35,1.59644011]
[1764799372646,0.61280164,917.7,916.35,1.59644011]
[1764799372847,0.61280164,917.69,916.35,1.59644011]
[1764799373149,0.61954272,917.68,916.35,1.59644011]
[1764799373343,0.61954272,917.67,916.37,1.59644011]
[1764799373548,1.08534688,918.13,916.37,1.59644011]
[1764799373849,0.61958302,918.12,916.37,1.59644011]
[1764799374143,1.08534688,918.09,916.41,1.59644011]
[1764799374349,0.61958302,918.08,916.41,1.59644011]
[1764799374649,0.61958302,918.07,916.41,1.59644011]
[1764799374949,0.61958302,918.06,916.41,1.59644011]
[1764799375149,0.61958302,918.05,916.41,1.59644011]
[1764799375349,0.61958302,918.04,916.43,1.59644011]
[1764799375543,1.63072085,918.24,916.43,1.59644011]
[1764799375544,0.61958302,918.03,916.43,1.59644011]
[1764799375747,0.61958302,918.02,916.43,1.59644011]
[1764799375949,0.61958302,918.01,916.43,1.59644011]
[1764799376147,0.61958302,918.0,916.43,1.59644011]
[1764799376346,0.61958302,917.99,916.43,1.59644011]
[1764799376547,0.61958302,917.98,916.43,1.59644011]
[1764799376752,0.61958302,917.97,916.43,1.59644011]
[1764799376950,0.61958302,917.96,916.43,1.59644011]
[1764799377147,0.61958302,917.95,916.42,1.59644011]
[1764799377352,0.61958302,917.94,916.42,1.59644011]
[1764799377548,0.61958302,917.93,916.42,1.59644011]
[1764799377753,0.61958302,917.92,916.42,1.59644011]
[1764799378053,0.61958302,917.91,916.42,1.59644011]
[1764799378252,0.61958302,917.9,916.43,1.079]
[1764799378451,0.61958302,917.89,916.43,1.079]
[1764799378651,0.61958302,917.88,916.43,1.079]
[1764799378849,1.71015132,917.87,916.43,1.079]
[1764799379055,1.71015132,917.86,916.43,1.079]
[1764799379355,0.1895936,918.78,916.43,1.079]
[1764799379356,1.08534688,917.65,916.43,1.079]
[1764799379556,0.61958302,917.64,916.43,1.079]
[1764799379755,1.08534688,917.6,916.43,1.079]
[1764799379955,0.61958302,917.59,916.43,1.079]
[1764799380155,0.61958302,917.58,916.43,1.079]
[1764799380353,0.61958302,917.57,916.43,1.079]
[1764799380551,0.61958302,917.56,916.43,1.079]
[1764799380754,0.61958302,917.55,916.43,1.079]
[1764799380951,2.71786809,918.41,916.43,1.079]
[1764799380952,0.61958302,917.54,916.43,1.079]
[1764799381157,0.61958302,917.53,916.43,1.079]
[1764799381454,0.61958302,917.52,916.43,1.079]
[1764799381656,0.61958302,917.51,916.43,1.079]
[1764799381852,0.61958302,917.5,916.43,1.079]
[1764799382057,0.61958302,917.49,916.43,1.079]
[1764799382254,0.61958302,917.48,916.43,1.079]
[1764799382453,0.61958302,917.47,916.43,1.079]
[1764799382657,0.61958302,917.46,916.43,1.079]
[1764799382854,0.61958302,917.45,916.43,1.079]
[1764799383059,0.61958302,917.44,916.43,1.079]
[1764799383261,0.61958302,917.43,916.43,1.079]
[1764799383459,0.61958302,917.42,916.43,1.079]
[1764799383660,0.61958302,917.41,916.43,1.079]
[1764799383856,0.61958302,917.4,916.43,1.079]
[1764799384061,0.61958302,917.39,916.43,1.079]
[1764799384358,0.61958302,917.38,916.43,1.079]
[1764799384557,0.61958302,917.37,916.43,1.079]
[1764799384760,0.61958302,917.36,916.43,1.079]
[1764799384962,1.08534688,917.81,916.43,1.079]
[1764799385155,1.71061894,917.8,916.43,1.079]
[1764799385358,1.71061894,917.79,916.43,1.079]
[1764799385657,1.08534688,917.77,916.43,1.079]
[1764799385957,1.71061894,917.76,916.43,1.079]
[1764799386161,1.71061894,917.75,916.43,1.079]
[1764799386359,1.71061894,917.74,916.43,1.079]
[1764799386557,1.08534688,917.61,916.43,1.079]
[1764799386760,1.71061894,917.6,916.43,1.079]
[1764799386959,1.08534688,917.5,916.43,1.079]
[1764799387159,1.08534688,917.39,916.43,1.079]
[1764799387358,1.08534688,917.37,916.43,1.079]
[1764799387560,1.08534688,917.26,916.43,1.079]
[1764799387760,1.08534688,917.11,916.43,1.079]
[1764799388063,1.08534688,917.02,916.43,1.079]
[1764799388261,0.61996851,917.01,916.43,1.079]
[1764799388457,1.08534688,916.98,916.43,1.079]
[1764799388659,1.08534688,916.79,916.43,1.079]
[1764799388859,0.61996851,916.78,916.43,1.079]
[1764799389063,1.08534688,916.79,916.43,1.079]
[1764799389064,0.61996851,916.77,916.43,1.079]
[1764799389261,0.61996851,916.76,916.27,1.355]
[1764799389466,0.61996851,916.75,916.27,1.355]
[1764799389766,1.08534688,916.69,916.27,1.355]
[1764799390065,1.08534688,916.55,915.34,0.0096776]
[1764799390261,0.61996851,916.54,914.37,1.59644011]
[1764799390461,1.08534688,916.37,914.42,0.01205496]
[1764799390662,2.71786809,917.19,913.49,2.69612639]
[1764799390663,1.08534688,916.35,914.13,1.59644011]
[1764799390866,0.61996851,916.34,914.13,1.59644011]
[1764799391166,1.08534688,916.2,913.74,1.59644011]
[1764799391362,1.08534688,916.05,913.59,1.59644011]
[1764799391567,3.80501533,917.21,914.28,0.978]
[1764799391568,1.08534688,916.01,914.28,0.978]
[1764799391767,0.61996851,916.0,914.28,0.978]
[1764799392063,0.61996851,915.99,914.28,0.978]
[1764799392366,2.71786809,916.84,914.28,0.978]
[1764799392367,0.61996851,915.98,914.28,0.978]
[1764799392563,0.61996851,915.97,914.28,0.978]
[1764799392767,0.61996851,915.96,914.28,0.978]
[1764799392967,0.61996851,915.95,914.28,0.978]
[1764799393164,0.61996851,915.94,914.28,0.978]
[1764799393369,0.61996851,915.93,914.29,1.506]
[1764799393572,0.61996851,915.92,914.29,1.506]
[1764799393869,0.61996851,915.91,914.29,1.506]
[1764799394069,0.61996851,915.9,914.29,1.506]
[1764799394265,0.61996851,915.89,914.29,1.506]
[1764799394471,0.61996851,915.88,914.29,1.506]
[1764799394769,0.61996851,915.87,914.29,1.506]
[1764799394966,0.61996851,915.86,914.29,1.506]
[1764799395164,1.08534688,915.84,914.29,1.506]
[1764799395367,0.61996851,915.83,914.29,1.506]
[1764799395566,0.61996851,915.82,914.29,1.506]
[1764799395770,0.61996851,915.81,914.29,1.506]
[1764799395971,1.08534688,915.79,914.29,1.506]
[1764799396171,1.08534688,915.51,914.29,1.506]
[1764799396470,1.08534688,915.25,914.29,1.506]
[1764799396666,1.70531539,915.24,914.29,1.506]
[1764799396870,0.61996851,915.23,914.29,1.506]
[1764799397367,0.61996851,915.22,914.29,1.506]
[1764799397569,0.61996851,915.21,914.29,1.506]
[1764799397870,0.61996851,915.2,914.29,1.506]
[1764799398072,0.61996851,915.19,914.29,1.506]
[1764799398271,0.61996851,915.18,914.29,1.506]
[1764799398571,0.61996851,915.17,914.29,1.506]
[1764799398766,0.61996851,915.16,914.29,1.506]
[1764799398967,1.08534688,915.59,914.29,1.506]
[1764799398968,0.61996851,915.15,914.29,1.506]
[1764799399268,1.08534688,915.64,914.29,1.506]
[1764799399472,1.08534688,915.61,914.29,1.506]
[1764799399671,1.08534688,915.59,914.29,1.506]
[1764799399872,0.63639902,915.58,914.29,1.506]
[1764799400171,1.08534688,915.51,914.29,1.506]
[1764799400367,0.63639902,915.5,914.29,1.506]
[1764799400672,0.63639902,915.49,914.29,1.506]
[1764799400970,0.63639902,915.48,914.29,1.506]
[1764799401166,0.63639902,915.47,914.29,1.506]
[1764799401473,0.63639902,915.46,914.29,1.506]
[1764799401768,0.63639902,915.45,914.29,1.506]
[1764799401971,0.63639902,915.44,914.29,1.506]
[1764799402171,0.63639902,915.43,914.29,1.506]
[1764799402372,0.63639902,915.42,914.29,1.506]
[1764799402567,1.08534688,915.76,914.29,1.506]
[1764799402568,0.63639902,915.41,914.29,1.506]
[1764799402769,0.63639902,915.4,914.29,1.506]
[1764799402973,0.63639902,915.39,914.29,1.506]
[1764799403172,0.63639902,915.38,914.29,1.506]
[1764799403374,1.08534688,915.84,914.29,1.506]
[1764799403572,0.63249153,915.83,914.29,1.506]
[1764799403774,0.63249153,915.82,914.29,1.506]
[1764799403976,0.63249153,915.81,914.29,1.506]
[1764799404176,0.63249153,915.8,914.29,1.506]
[1764799404371,0.63249153,915.79,914.29,1.506]
[1764799404575,0.63249153,915.78,914.29,1.506]
[1764799404774,0.63249153,915.77,914.29,1.506]
[1764799404971,0.63249153,915.76,914.29,1.506]
[1764799405276,0.63249153,915.75,914.29,1.506]
[1764799405572,0.63249153,915.74,914.29,1.506]
[1764799405771,0.63249153,915.73,914.29,1.506]
[1764799405973,0.63249153,915.72,914.29,1.506]
[1764799406272,0.63249153,915.71,914.29,1.506]
[1764799406475,0.63249153,915.7,914.29,1.506]
[1764799406673,0.63249153,915.69,914.29,1.506]
[1764799406977,2.71786809,916.72,914.29,1.506]
[1764799406978,0.63249153,915.68,914.29,1.506]
[1764799407171,0.63249153,915.67,914.29,1.506]
[1764799407371,0.63249153,915.66,914.29,1.506]
[1764799407571,0.63249153,915.65,914.29,1.506]
[1764799407775,0.63249153,915.64,914.29,1.506]
[1764799407977,0.63249153,915.63,914.29,1.506]
[1764799408174,0.63249153,915.62,914.29,1.506]
[1764799408373,0.63249153,915.61,914.29,1.506]
[1764799408576,1.08534688,915.93,914.29,1.506]
[1764799408577,0.63249153,915.6,914.29,1.506]
[1764799408777,0.63249153,915.59,914.29,1.506]
[1764799409073,0.63249153,915.58,914.29,1.506]
[1764799409276,1.08534688,916.04,914.29,1.506]
[1764799409473,0.62923709,916.03,914.29,1.506]
[1764799409676,0.62923709,916.02,914.29,1.506]
[1764799409974,0.62923709,916.01,914.29,1.506]
[1764799410179,0.62923709,916.0,914.29,1.506]
[1764799410374,0.62923709,915.99,914.29,1.506]
[1764799410573,0.62923709,915.98,914.29,1.506]
[1764799410778,0.62923709,915.97,914.29,1.506]
[1764799411077,0.62923709,915.96,914.29,1.506]
[1764799411278,0.62923709,915.95,914.29,1.506]
[1764799411480,0.62923709,915.94,914.29,1.506]
[1764799411678,0.62923709,915.93,914.29,1.506]
[1764799411879,0.62923709,915.92,914.29,1.506]
[1764799412078,0.62923709,915.91,914.29,1.506]
[1764799412379,0.62923709,915.9,914.29,1.506]
[1764799412678,0.62923709,915.89,914.29,1.506]
[1764799412879,0.62923709,915.88,914.29,1.506]
[1764799413077,0.62923709,915.87,914.29,1.506]
[1764799413278,0.62923709,915.86,914.29,1.506]
[1764799413475,0.62923709,915.85,914.29,1.506]
[1764799413679,0.62923709,915.84,914.29,1.506]
[1764799413880,0.62923709,915.83,914.29,1.506]
[1764799414176,0.62923709,915.82,914.29,1.506]
[1764799414381,0.62923709,915.81,914.29,1.506]
[1764799414579,0.62923709,915.8,914.29,1.506]
[1764799414776,0.62923709,915.79,914.29,1.506]
[1764799414979,0.62923709,915.78,914.29,1.506]
[1764799415180,0.62923709,915.77,914.29,1.506]
[1764799415380,0.62923709,915.76,914.29,1.506]
[1764799415581,0.62923709,915.75,914.29,1.506]
[1764799415881,1.08534688,916.12,914.29,1.506]
[1764799415882,0.62923709,915.74,914.29,1.506]
[1764799416081,0.62923709,915.73,914.29,1.506]
[1764799416391,1.08534688,916.13,914.29,1.506]
[1764799416577,0.62760815,916.12,914.29,1.506]
[1764799416881,0.00867314,917.05,914.29,1.506]
[1764799416882,0.62760815,916.11,914.29,1.506]
[1764799417078,0.62760815,916.1,914.29,1.506]
[1764799417281,0.62760815,916.09,914.29,1.506]
[1764799417476,0.62760815,916.08,914.29,1.506]
[1764799417776,0.62760815,916.07,914.29,1.506]
[1764799417981,1.08534688,916.54,914.29,1.506]
[1764799418282,0.62737265,916.53,914.29,1.506]
[1764799418479,0.62737265,916.52,914.29,1.506]
[1764799418681,0.62737265,916.51,914.29,1.506]
[1764799418878,0.62737265,916.5,914.29,1.506]
[1764799419082,2.71786809,917.45,914.29,1.506]
[1764799419083,0.62737265,916.49,914.29,1.506]
[1764799419285,0.62737265,916.48,914.29,1.506]
[1764799419483,0.62737265,916.47,914.29,1.506]
[1764799419681,0.62737265,916.46,914.29,1.506]
[1764799419880,0.62737265,916.45,914.29,1.506]
[1764799420087,0.62737265,916.44,914.29,1.506]
[1764799420381,0.62737265,916.43,914.29,1.506]
[1764799420586,0.62737265,916.42,914.29,1.506]
[1764799420786,0.62737265,916.41,914.29,1.506]
[1764799420986,0.62737265,916.4,914.29,1.506]
[1764799421286,0.62737265,916.39,914.29,1.506]
[1764799421488,0.62737265,916.38,914.29,1.506]
[1764799421685,0.62737265,916.37,914.29,1.506]
[1764799421887,0.62737265,916.36,914.29,1.506]
[1764799422189,0.62737265,916.35,914.29,1.506]
[1764799422390,0.62737265,916.34,914.29,1.506]
[1764799422587,0.62737265,916.33,914.29,1.506]
[1764799422784,0.62737265,916.32,914.29,1.506]
[1764799422988,0.62737265,916.31,914.29,1.506]
[1764799423186,0.62737265,916.3,914.29,1.506]
[1764799423385,0.62737265,916.29,914.29,1.506]
[1764799423590,0.62737265,916.28,914.29,1.506]
[1764799423791,0.62737265,916.27,914.29,1.506]
[1764799423992,0.62737265,916.26,914.29,1.506]
[1764799424193,0.62737265,916.25,914.29,1.506]
[1764799424495,0.62737265,916.24,914.29,1.506]
[1764799424689,0.62737265,916.23,914.29,1.506]
[1764799424889,0.62737265,916.22,914.29,1.506]
[1764799425193,0.62737265,916.21,914.29,1.506]
[1764799425395,0.62737265,916.2,914.29,1.506]